bitfinex/quotes_ETHUSD_20250725
["timestamp","ask_amount","ask_price","bid_price","bid_amount"]
[1753454205862,1.4463,3665.2,3664.7,2.72873365]
[1753454206068,2.72851317,3665.0,3664.4,3.0]
[1753454206286,0.03410734,3664.9,3664.4,2.72893532]
[1753454206495,1.48040734,3664.9,3664.4,2.72893532]
[1753454206702,1.3224,3664.7,3664.1,2.72918315]
[1753454206928,0.03411013,3664.6,3664.0,6.36]
[1753454207067,1.3224,3664.7,3664.6,2.72881078]
[1753454207706,6.0916,3665.2,3665.1,2.72843851]
[1753454208281,1e-08,3666.1,3665.1,2.72843851]
[1753454208492,1e-08,3666.1,3664.6,3.0]
[1753454208493,1e-08,3666.1,3666.0,2.72776868]
[1753454209004,1e-08,3666.1,3666.0,3.68746868]
[1753454209213,1e-08,3666.1,3666.0,2.72776868]
[1753454209879,1e-08,3666.1,3666.0,7.15296868]
[1753454210407,1e-08,3666.1,3666.0,8.52036868]
[1753454210902,1e-08,3666.1,3666.0,12.77486868]
[1753454211766,1e-08,3666.1,3666.0,13.24036868]
[1753454212279,1e-08,3666.1,3666.0,12.77386868]
[1753454213097,1e-08,3666.1,3666.0,13.23936868]
[1753454215017,1e-08,3666.9,3666.8,2.72717355]
[1753454215310,1e-08,3666.9,3666.8,10.58117355]
[1753454215688,0.002,3667.6,3667.5,2.72665303]
[1753454215876,0.002,3667.6,3667.5,5.72665303]
[1753454216294,0.002,3667.6,3667.5,5.86265303]
[1753454216909,1e-08,3667.6,3667.5,6.82235303]
[1753454217339,1e-08,3667.6,3667.5,7.28785303]
[1753454217534,1e-08,3667.6,3667.5,0.136]
[1753454217709,1e-08,3667.6,3667.5,2.72665303]
[1753454217710,1.44630001,3667.6,3667.5,2.72665303]
[1753454218014,1e-08,3667.6,3667.5,2.72665303]
[1753454219187,1e-08,3667.6,3667.5,5.72665303]
[1753454221715,1e-08,3667.6,3667.5,6.68635303]
[1753454222022,1.44630001,3667.6,3667.5,5.72665303]
[1753454222223,1e-08,3667.6,3667.5,5.72665303]
[1753454222887,1e-08,3667.6,3667.5,10.44165303]
[1753454223715,1e-08,3667.6,3667.5,11.40135303]
[1753454224114,1e-08,3667.6,3667.5,13.18205303]
[1753454224615,1e-08,3667.6,3667.5,5.72665303]
[1753454225727,1e-08,3667.6,3667.5,10.44065303]
[1753454226629,1e-08,3667.6,3667.5,5.72665303]
[1753454226791,1.36850001,3667.6,3667.5,5.72665303]
[1753454227124,1e-08,3667.6,3667.5,5.72665303]
[1753454227288,1e-08,3667.6,3667.5,3.0]
[1753454227483,1.36850001,3667.6,3667.5,3.0]
[1753454227689,1.36850001,3667.6,3667.5,5.86265303]
[1753454227904,1.36850001,3667.6,3667.5,3.136]
[1753454228101,1.36850001,3667.6,3667.5,3.0]
[1753454228301,1e-08,3667.6,3667.5,5.72665303]
[1753454228489,1.36850001,3667.6,3667.5,3.0]
[1753454229530,1.36850001,3667.6,3667.5,5.72665303]
[1753454230128,1.36850001,3667.6,3667.5,3.0]
[1753454230332,1.36850001,3667.6,3667.4,3.0]
[1753454230534,1.36850001,3667.6,3667.5,2.72665303]
[1753454230695,1.36850001,3667.6,3667.4,2.72669859]
[1753454230894,0.46660001,3667.6,3667.4,2.72669859]
[1753454231128,0.9019,3667.5,3667.4,2.72669859]
[1753454231343,1e-08,3667.6,3667.5,2.72665303]
[1753454231541,1e-08,3667.6,3667.0,3.0]
[1753454231542,1e-08,3667.6,3665.9,2.72783261]
[1753454231760,1e-08,3667.6,3667.3,3.0]
[1753454231761,1.3685,3667.5,3667.3,3.0]
[1753454231924,1e-08,3667.6,3667.3,3.0]
[1753454232101,1.3685,3667.4,3667.2,3.0]
[1753454232412,1.3685,3667.3,3667.1,2.72690347]
[1753454232612,1.3685,3667.2,3666.9,0.136]
[1753454232819,0.03408595,3667.2,3666.8,2.86312686]
[1753454233033,1.3685,3667.1,3666.8,2.86312686]
[1753454233201,0.136,3667.4,3666.8,2.86312686]
[1753454233202,1.3685,3667.0,3666.8,0.136]
[1753454233401,0.136,3667.4,3666.8,0.136]
[1753454233638,1.40258502,3667.3,3666.8,2.86316939]
[1753454233840,0.03408502,3667.3,3666.8,2.86316939]
[1753454234138,1.3685,3667.2,3666.8,2.86316956]
[1753454234344,0.03408502,3667.3,3666.8,3.136]
[1753454234559,1.3685,3667.1,3666.8,2.86317163]
[1753454234845,1.3685,3667.1,3667.0,2.72702481]
[1753454235005,1.3685,3667.1,3666.8,0.136]
[1753454235211,1.3685,3667.1,3667.0,2.72702481]
[1753454235858,1.3685,3667.1,3666.8,0.136]
[1753454236015,2.69608781,3667.0,3666.7,0.001]
[1753454236524,1.3685,3666.9,3666.7,0.001]
[1753454237222,1.3685,3666.8,3666.7,0.001]
[1753454237418,1.3685,3666.8,3666.7,2.72824793]
[1753454237625,1.2935,3667.0,3666.7,0.001]
[1753454237836,1.2935,3667.0,3666.8,2.72712562]
[1753454238344,1e-08,3667.6,3666.7,0.001]
[1753454238345,1.3167,3667.5,3667.2,2.72687253]
[1753454238652,1.3167,3667.5,3667.4,2.72672738]
[1753454238856,2.6852,3667.5,3667.2,0.136]
[1753454239028,2.6852,3667.5,3666.7,0.001]
[1753454239029,2.86296342,3667.1,3666.7,0.001]
[1753454239355,0.136,3667.1,3666.7,0.001]
[1753454239554,1.3685,3667.0,3666.7,0.001]
[1753454239782,4.09552542,3667.0,3666.7,0.001]
[1753454240078,4.09552542,3667.0,3664.7,3.0]
[1753454240079,4.01536744,3666.3,3664.2,1.3163]
[1753454240222,11.09985767,3666.9,3664.5,0.1368]
[1753454240223,2.72868275,3664.8,3664.5,0.1368]
[1753454240422,0.1368,3665.1,3664.5,0.1368]
[1753454240626,4.25939869,3664.9,3664.1,2.72916174]
[1753454240850,2.76278542,3664.8,3664.3,0.1368]
[1753454241036,2.15147107,3664.8,3664.0,6.36]
[1753454241244,0.03410827,3664.8,3664.0,6.4968]
[1753454241553,0.03410827,3664.8,3664.0,6.36]
[1753454241554,1.3685,3664.7,3664.0,6.36]
[1753454241750,4.709,3664.8,3664.0,6.36]
[1753454242245,1.4026092,3664.7,3664.0,6.36]
[1753454242465,2.11906092,3664.6,3664.0,6.36]
[1753454242665,1.21716092,3664.6,3664.0,6.36]
[1753454242963,1.3685,3664.5,3664.0,6.36]
[1753454243147,1.3685,3664.5,3664.1,2.72918315]
[1753454243327,4.709,3664.8,3664.0,6.36]
[1753454243532,0.0341092,3664.7,3664.0,6.36]
[1753454243769,2.72881078,3664.6,3664.0,6.36]
[1753454244061,4.709,3664.8,3664.0,6.36]
[1753454244062,4.04028315,3664.1,3664.0,6.36]
[1753454244265,8.74928315,3664.1,3664.0,6.36]
[1753454244556,10.11778315,3664.1,3664.0,6.36]
[1753454246257,10.11778315,3664.1,3664.0,5.9128125]
[1753454246467,10.11778315,3664.1,3664.0,2.38614027]
[1753454246764,10.11778315,3664.1,3663.0,0.001]
[1753454246765,4.0405282,3663.1,3663.0,0.001]
[1753454246929,8.7495282,3663.1,3663.0,0.001]
[1753454247129,5.4090282,3663.1,3663.0,0.001]
[1753454247344,10.96603869,3663.1,3663.0,0.001]
[1753454247623,10.93191459,3663.1,3663.0,0.001]
[1753454248256,8.20198639,3663.1,3663.0,0.001]
[1753454249033,10.93191459,3663.1,3663.0,0.001]
[1753454249229,8.20198639,3663.1,3663.0,0.001]
[1753454249435,10.93191459,3663.1,3663.0,0.001]
[1753454250359,11.48191459,3663.1,3663.0,0.001]
[1753454250526,6.22291459,3663.1,3663.0,0.001]
[1753454250733,10.93191459,3663.1,3663.0,0.001]
[1753454251273,2.12448639,3663.1,3663.0,0.001]
[1753454251473,6.1564,3663.1,3663.0,0.001]
[1753454251643,1.4474,3663.1,3663.0,2.73100273]
[1753454251829,6.551,3663.5,3663.3,2.72975171]
[1753454252033,4.8458,3663.4,3663.1,2.7299282]
[1753454252233,2.7299282,3663.1,3663.0,0.001]
[1753454252466,5.39618526,3663.1,3663.0,0.001]
[1753454252668,6.76468526,3663.1,3663.0,0.001]
[1753454252841,6.73056116,3663.1,3663.0,0.001]
[1753454253363,7.28056116,3663.1,3663.0,0.001]
[1753454253662,6.73056116,3663.1,3663.0,0.001]
[1753454253879,11.43856116,3663.1,3663.0,0.001]
[1753454255372,6.73056116,3663.1,3663.0,0.001]
[1753454255687,11.43856116,3663.1,3663.0,0.001]
[1753454256475,11.43856116,3663.1,3662.2,0.001]
[1753454256476,4.10624997,3662.4,3662.2,0.001]
[1753454256677,11.84838059,3662.4,3662.2,0.001]
[1753454256881,7.65632453,3662.3,3662.2,1e-08]
[1753454257078,4.10684653,3661.6,3660.6,0.2505]
[1753454257279,8.84898461,3661.6,3660.6,0.2505]
[1753454257590,8.81484653,3661.6,3660.7,1.06959489]
[1753454257777,4.10684653,3661.6,3660.7,1.06959489]
[1753454257981,13.07170382,3661.6,3661.5,1e-08]
[1753454258179,4.59129571,3661.4,3661.3,1e-08]
[1753454258349,16.11987321,3661.4,3661.3,1e-08]
[1753454258557,22.08333327,3661.4,3661.3,1e-08]
[1753454258876,25.83196752,3661.4,3661.3,1e-08]
[1753454259463,25.83096752,3661.4,3661.3,1e-08]
[1753454259694,25.83096752,3661.4,3660.0,0.004]
[1753454259695,2.73216578,3660.1,3660.0,0.004]
[1753454259991,9.76655551,3660.1,3660.0,0.004]
[1753454260189,11.05615551,3660.1,3660.0,0.004]
[1753454260490,18.99097392,3660.1,3660.0,0.004]
[1753454260703,21.99097392,3660.1,3660.0,0.004]
[1753454260865,22.54097392,3660.1,3660.0,0.004]
[1753454261189,22.54097392,3660.1,3658.1,0.4398]
[1753454261190,2.73268841,3659.4,3658.1,0.4398]
[1753454261395,8.84464701,3659.4,3658.3,2.73343812]
[1753454261571,9.96821245,3659.4,3658.2,3.65296899]
[1753454261772,9.96821245,3659.4,3657.6,1.3004]
[1753454261773,1.15772404,3659.4,3658.7,0.9194]
[1753454262089,4.708,3659.4,3658.7,3.6525907]
[1753454262398,8.76444701,3659.4,3658.3,0.9194]
[1753454262603,10.10528841,3659.4,3658.3,0.9194]
[1753454262797,6.083,3659.4,3658.8,0.9194]
[1753454262999,6.083,3659.4,3658.5,3.17313078]
[1753454263000,8.81568841,3659.4,3658.5,0.4398]
[1753454263298,11.81011129,3659.4,3658.2,0.9194]
[1753454263464,11.81011129,3659.4,3657.6,4.0343878]
[1753454263465,11.26011129,3659.4,3658.1,0.9194]
[1753454263880,8.52742288,3659.4,3658.6,2.73327482]
[1753454264108,11.26011129,3659.4,3658.2,2.73357661]
[1753454264306,7.3726,3659.4,3658.2,0.4398]
[1753454264512,11.22623112,3660.6,3657.4,3.0]
[1753454264513,0.20345221,3660.0,3659.9,2.73231509]
[1753454264717,0.20345221,3660.0,3659.9,5.49371509]
[1753454265039,0.03415113,3660.2,3659.3,2.3256]
[1753454265200,2.73239329,3659.8,3659.3,0.004]
[1753454265520,1.3617,3660.0,3659.3,0.004]
[1753454265521,2.73268841,3659.4,3659.3,0.004]
[1753454265720,7.47484701,3659.4,3659.3,0.004]
[1753454265884,1.3617,3660.0,3659.3,0.004]
[1753454266219,4.709,3659.9,3659.3,1.3632]
[1753454266518,1.4171,3661.2,3660.2,2.73209114]
[1753454266820,4.8458,3660.6,3660.2,4.09129114]
[1753454267533,1.17884469,3660.3,3659.6,1.0562]
[1753454267693,4.709,3660.2,3659.7,2.73246078]
[1753454267885,0.1368,3660.1,3659.8,0.9194]
[1753454268086,0.1368,3660.1,3659.9,0.9194]
[1753454268520,0.1368,3660.1,3660.0,0.9194]
[1753454268717,4.709,3660.2,3660.0,1.3592]
[1753454268921,1.04204469,3660.3,3660.1,0.9194]
[1753454269120,1.04204469,3660.3,3660.0,0.9194]
[1753454269321,1.17884469,3660.3,3660.0,0.9194]
[1753454269527,0.03415113,3660.2,3660.0,0.9194]
[1753454269687,4.709,3660.1,3659.5,2.2182]
[1753454270029,0.1368,3660.0,3659.6,0.9194]
[1753454270322,0.170953,3660.0,3659.7,1.3592]
[1753454270491,0.170953,3660.0,3659.7,0.9194]
[1753454270692,0.1368,3660.0,3659.8,0.9194]
[1753454271034,4.87995207,3660.1,3659.8,0.9194]
[1753454271332,0.1368,3659.9,3659.6,0.9194]
[1753454271483,0.1368,3659.9,3659.8,0.9194]
[1753454271691,0.1368,3659.9,3659.8,3.65178974]
[1753454272106,4.709,3660.1,3659.8,1.3592]
[1753454272288,4.8458,3660.1,3659.8,1.3592]
[1753454272490,0.034153,3660.0,3659.9,0.9194]
[1753454272695,1.98812931,3660.0,3658.9,0.9194]
[1753454273000,1.61181014,3660.3,3659.7,2.73240461]
[1753454273001,0.56976545,3660.2,3659.7,2.73240461]
[1753454273223,4.709,3660.1,3660.0,2.73220566]
[1753454273406,4.709,3660.1,3660.0,4.09140566]
[1753454273738,0.1368,3661.2,3660.1,1.3012]
[1753454273940,4.8448,3661.2,3660.3,2.7320165]
[1753454274146,4.8448,3661.2,3660.4,1.3592]
[1753454274440,4.8448,3661.2,3660.7,0.1368]
[1753454274645,1.32374274,3661.1,3660.1,1.3012]
[1753454274939,0.1368,3660.4,3660.1,4.03329771]
[1753454275112,4.8448,3660.4,3660.2,0.9194]
[1753454275445,0.1368,3660.4,3659.9,0.1368]
[1753454275645,0.1368,3660.4,3659.2,1.346]
[1753454275646,2.73221295,3660.1,3659.4,0.9194]
[1753454275932,0.1368,3659.7,3658.9,0.1368]
[1753454276147,2.86948841,3659.4,3658.2,1.3457]
[1753454276436,2.86948841,3659.4,3657.7,2.73395164]
[1753454276437,2.73346878,3658.4,3657.5,8.1924442]
[1753454276611,6.2212586,3659.4,3657.5,8.1924442]
[1753454276612,4.8448,3658.3,3657.5,11.06333996]
[1753454276819,0.1368,3658.1,3657.5,8.3292442]
[1753454277010,1.2896,3659.0,3657.6,1.3592]
[1753454277011,4.708,3658.0,3657.6,1.3592]
[1753454277210,4.708,3657.9,3657.7,2.73394608]
[1753454277415,4.708,3657.8,3657.7,2.73394608]
[1753454277700,4.708,3657.8,3657.7,4.09314608]
[1753454278121,4.708,3657.8,3657.7,0.9194]
[1753454278334,4.708,3657.8,3657.5,10.00713175]
[1753454278498,4.708,3657.8,3657.5,7.4098442]
[1753454278701,0.1368,3657.6,3657.0,0.1368]
[1753454278927,0.1368,3657.6,3657.1,2.73440057]
[1753454279137,7.44188622,3657.8,3656.8,4.03862593]
[1753454279335,7.44188622,3657.8,3656.5,1.0562]
[1753454279336,0.1368,3657.0,3656.5,1.0562]
[1753454279636,0.03417448,3657.7,3656.4,1.304]
[1753454279637,0.1368,3656.8,3656.4,1.304]
[1753454279938,0.1368,3656.8,3656.1,0.9194]
[1753454279939,0.03418382,3656.7,3656.2,0.1368]
[1753454280238,4.709,3656.6,3655.9,1.3103]
[1753454280536,2.7339377,3657.8,3655.9,1.3103]
[1753454280537,0.57024052,3657.7,3656.0,1.3592]
[1753454280840,0.57024052,3657.7,3655.9,1.3103]
[1753454280841,2.73427445,3657.3,3656.5,2.73480011]
[1753454281004,0.1368,3656.9,3656.4,0.1368]
[1753454281335,4.71,3657.1,3656.5,0.9194]
[1753454281639,0.03418102,3657.0,3656.2,2.73508013]
[1753454281940,0.03418102,3657.0,3656.3,0.9194]
[1753454281941,0.8588869,3657.0,3656.3,0.9194]
[1753454282113,0.1368,3657.0,3656.9,2.73455659]
[1753454282313,0.1368,3657.0,3656.5,0.1368]
[1753454282514,0.03418195,3656.9,3656.4,0.9194]
[1753454282824,1.32378289,3656.8,3655.9,4.04560417]
[1753454283030,4.71,3657.3,3656.0,2.73522975]
[1753454283205,0.54860915,3657.2,3655.9,1.3103]
[1753454283407,1.3652,3656.8,3655.3,1.4278]
[1753454283608,4.74418382,3656.7,3655.3,1.4278]
[1753454283802,4.71,3656.7,3655.5,2.73560388]
[1753454284013,4.71,3656.7,3655.4,1.3592]
[1753454284014,7.44454606,3657.0,3655.6,1.3592]
[1753454284215,0.83349747,3656.9,3655.7,2.73540219]
[1753454284415,2.73491694,3656.5,3655.7,2.73539778]
[1753454284640,0.79931552,3656.9,3655.8,0.9194]
[1753454284827,4.71,3657.0,3655.8,1.3592]
[1753454285029,0.03418195,3656.9,3655.8,1.3592]
[1753454285205,4.71,3657.0,3655.9,0.9194]
[1753454285602,0.03418195,3656.9,3656.0,2.73522319]
[1753454285843,2.7346935,3656.8,3656.0,2.73522365]
[1753454286143,4.71,3657.0,3655.9,0.9029]
[1753454286369,4.74418102,3657.0,3655.9,0.9029]
[1753454286645,4.74418102,3657.0,3655.3,1.4278]
[1753454286844,1.3646,3656.9,3655.9,2.73527843]
[1753454287151,1.3164,3656.8,3654.9,4.6327]
[1753454287443,1.3164,3656.8,3654.9,2.5356]
[1753454287444,2.73513252,3656.2,3654.9,2.5356]
[1753454287660,7.48037182,3656.1,3655.3,2.73573136]
[1753454287946,0.60264,3656.7,3655.1,2.98538949]
[1753454287947,1.3164,3655.9,3655.1,0.2495]
[1753454288146,4.711,3655.8,3655.1,0.2495]
[1753454288356,4.74519224,3655.8,3655.1,0.2495]
[1753454288513,0.9245,3655.7,3655.1,0.2495]
[1753454288844,2.73558389,3655.6,3655.1,0.2495]
[1753454289058,2.55687731,3655.5,3655.1,0.2495]
[1753454289566,2.7358284,3655.2,3655.1,0.2495]
[1753454289751,7.48102625,3655.2,3655.1,0.2495]
[1753454289950,8.8114284,3655.2,3655.1,0.2495]
[1753454290149,10.1278284,3655.2,3655.1,0.2495]
[1753454290348,8.79415943,3655.2,3655.1,0.2495]
[1753454290565,11.52998783,3655.2,3655.1,0.2495]
[1753454291369,2.73597811,3655.0,3654.9,0.2495]
[1753454291662,2.77017783,3655.0,3654.9,0.2495]
[1753454291865,4.13477783,3655.0,3654.9,0.2495]
[1753454292038,5.5647944,3655.0,3654.9,0.2495]
[1753454292244,5.53059468,3655.0,3654.9,0.2495]
[1753454292568,5.66739468,3655.0,3654.9,0.2495]
[1753454293275,0.1368,3655.0,3654.9,0.2495]
[1753454293633,0.1368,3655.0,3654.9,3.88845296]
[1753454293879,4.712,3655.6,3654.9,1.604]
[1753454294083,4.712,3655.6,3655.5,2.73560388]
[1753454294430,4.712,3655.6,3655.0,0.9029]
[1753454294431,4.8488,3655.6,3655.0,0.9029]
[1753454294631,0.1368,3655.4,3654.9,0.2495]
[1753454294859,0.1368,3655.7,3655.1,2.73590325]
[1753454295072,1.4056885,3656.2,3655.7,2.73545422]
[1753454295073,4.712,3655.8,3655.7,2.73545422]
[1753454295731,4.8488,3656.0,3655.9,2.73530457]
[1753454295932,4.8498,3656.3,3656.2,2.73508013]
[1753454296134,2.7224,3657.1,3656.2,2.73508013]
[1753454296135,0.1368,3656.4,3656.3,2.73500533]
[1753454296530,0.1368,3656.4,3656.3,3.63790533]
[1753454296775,0.9245,3657.6,3656.3,3.63790533]
[1753454296776,4.713,3657.0,3656.9,2.73455659]
[1753454296965,4.713,3657.0,3656.4,2.73493053]
[1753454296966,4.8498,3657.1,3657.0,2.73448181]
[1753454297354,4.713,3657.1,3657.0,2.73448181]
[1753454298168,4.713,3657.1,3657.0,3.63738181]
[1753454298477,4.713,3657.1,3656.8,0.1368]
[1753454298645,4.713,3657.1,3656.3,4.11359808]
[1753454298646,0.51916102,3657.0,3656.3,1.3786]
[1753454298852,0.1368,3656.9,3656.7,2.73465381]
[1753454299065,4.713,3657.1,3656.3,1.3786]
[1753454299387,0.1368,3656.4,3655.6,0.001]
[1753454299683,0.1368,3655.9,3655.6,0.001]
[1753454299855,0.1368,3655.9,3655.8,2.73537939]
[1753454300051,0.1368,3655.8,3655.6,0.001]
[1753454300286,4.712,3656.1,3655.6,0.001]
[1753454300462,0.1368,3655.9,3655.6,2.73646037]
[1753454300668,0.1368,3655.9,3655.7,2.73543423]
[1753454300884,0.1368,3655.9,3655.8,2.73537939]
[1753454301378,4.712,3656.2,3655.7,0.1368]
[1753454301561,0.1368,3655.8,3655.6,0.001]
[1753454301889,4.712,3655.7,3655.6,0.001]
[1753454302566,4.712,3655.7,3655.6,2.73652905]
[1753454302782,1.3646,3656.6,3655.6,2.73652905]
[1753454302783,1.3713,3656.5,3655.6,0.9039]
[1753454303097,0.1368,3656.3,3656.0,2.73522486]
[1753454303394,0.1368,3656.3,3655.6,1.0407]
[1753454303395,7.5012885,3656.2,3655.6,0.001]
[1753454303694,0.1368,3655.8,3655.6,0.001]
[1753454303852,4.712,3655.7,3655.6,0.001]
[1753454304058,6.0766,3655.7,3655.6,0.001]
[1753454304310,0.1368,3655.8,3655.6,0.001]
[1753454304453,2.73500533,3656.3,3655.6,0.001]
[1753454304657,2.76928523,3656.2,3655.6,0.001]
[1753454304964,7.48128523,3656.2,3655.6,0.001]
[1753454305271,2.73545422,3655.7,3655.6,0.001]
[1753454305485,7.44745422,3655.7,3655.6,0.001]
[1753454305861,4.712,3655.7,3655.6,0.001]
[1753454306067,9.68850698,3655.7,3655.6,0.001]
[1753454307364,4.712,3655.7,3655.6,0.001]
[1753454307570,4.712,3655.7,3655.6,2.73652905]
[1753454308074,4.712,3655.7,3655.6,0.001]
[1753454308268,1.411,3656.3,3655.6,0.001]
[1753454308269,0.0341885,3656.2,3655.6,0.001]
[1753454308465,0.03418289,3656.8,3655.6,2.3035]
[1753454308666,1.3263,3657.3,3657.2,2.73433227]
[1753454308866,4.712,3657.3,3656.9,2.73449552]
[1753454309104,4.712,3657.3,3656.6,1.3741]
[1753454309340,2.73448181,3657.0,3654.9,1.6246]
[1753454309613,1.3812,3657.1,3655.7,0.9029]
[1753454309817,1.3812,3657.1,3655.8,1.7947]
[1753454310126,8.70382044,3658.5,3655.8,1.7947]
[1753454310127,4.76718102,3657.0,3655.8,1.3431]
[1753454310269,0.9245,3656.9,3655.8,1.3431]
[1753454310468,1.3072,3657.6,3655.8,4.3431]
[1753454310469,0.4401,3657.3,3655.8,4.3431]
[1753454310668,1.3072,3657.6,3655.8,4.3431]
[1753454310669,0.03417634,3657.5,3656.2,2.73508013]
[1753454310902,0.03417634,3657.5,3656.0,2.73522975]
[1753454310903,4.734,3657.3,3656.3,1.3545]
[1753454311200,0.03417915,3657.2,3656.3,1.3545]
[1753454311415,1.3072,3657.6,3657.4,2.73418275]
[1753454311416,0.03417634,3657.5,3657.4,2.73418275]
[1753454311567,4.731,3657.6,3656.8,2.2116]
[1753454311766,4.731,3657.6,3657.5,2.73410799]
[1753454312086,4.731,3657.6,3657.5,3.63700799]
[1753454312391,4.729,3658.2,3657.5,1.3545]
[1753454312604,4.729,3658.2,3658.1,2.73365955]
[1753454312996,2.3464,3659.0,3657.9,2.73375699]
[1753454313308,4.727,3658.6,3658.5,2.73336066]
[1753454313631,4.727,3658.6,3657.7,1.3871]
[1753454313776,0.034167,3658.5,3658.4,2.73343538]
[1753454314009,4.727,3658.6,3658.4,2.73343538]
[1753454314209,4.727,3658.6,3658.5,2.73336066]
[1753454314530,0.1368,3658.4,3658.3,2.7335101]
[1753454314842,2.7335101,3658.3,3657.2,2.73433091]
[1753454315047,0.1368,3658.1,3657.3,2.87105751]
[1753454315212,0.1368,3657.8,3657.6,2.73402763]
[1753454315411,0.1368,3657.8,3657.5,2.73409785]
[1753454315849,4.717,3658.1,3657.6,1.3545]
[1753454316145,4.717,3658.1,3658.0,2.73373428]
[1753454316309,0.1368,3658.3,3658.0,2.73373428]
[1753454316510,0.1368,3658.3,3657.9,2.73373922]
[1753454316711,1.33666981,3658.2,3657.2,1.4175]
[1753454316907,0.48518,3658.3,3657.7,2.73393613]
[1753454317112,4.8488,3658.2,3658.0,2.73369058]
[1753454317761,4.8488,3658.2,3657.8,2.73385894]
[1753454317951,4.8488,3658.2,3658.1,2.73365955]
[1753454318151,0.4317,3658.8,3657.9,0.8885]
[1753454318450,4.8478,3658.7,3658.2,2.73353514]
[1753454318622,1.33666607,3658.6,3657.6,0.8885]
[1753454318823,0.1368,3658.5,3658.4,2.73343538]
[1753454319155,0.1368,3659.2,3658.5,1.4592]
[1753454319355,0.1368,3659.4,3658.9,2.73301153]
[1753454319651,4.711,3659.5,3658.2,1.3825]
[1753454319652,0.03615953,3659.3,3658.6,0.1368]
[1753454319816,0.1368,3659.1,3658.6,2.87005367]
[1753454320017,0.03416233,3659.0,3658.7,2.73319642]
[1753454320217,0.03416233,3659.0,3658.6,2.87005908]
[1753454320458,4.71,3658.9,3658.0,1.4432]
[1753454320617,0.1368,3658.7,3658.4,2.73336403]
[1753454320818,0.1368,3658.7,3658.4,2.7334165]
[1753454321034,0.1368,3658.7,3658.3,2.73350426]
[1753454321233,0.03416607,3658.6,3658.2,0.1368]
[1753454321428,0.1368,3658.7,3658.2,1.0253]
[1753454321639,0.1368,3658.7,3658.3,2.73345457]
[1753454321960,1.3409,3659.3,3658.8,2.73311642]
[1753454321961,0.002,3659.3,3658.8,2.73311642]
[1753454322122,0.002,3659.3,3658.0,1.4432]
[1753454322123,4.71,3658.9,3658.6,0.1368]
[1753454322329,4.71,3658.9,3658.7,2.73320719]
[1753454322548,4.71,3659.0,3658.0,1.4432]
[1753454322728,4.71,3659.0,3658.7,2.8700094]
[1753454322928,4.71,3659.0,3658.7,0.1368]
[1753454323125,5.5808,3659.0,3658.1,0.8885]
[1753454323326,5.5808,3659.0,3658.2,0.1368]
[1753454323327,0.1368,3658.7,3658.2,0.1368]
[1753454323679,0.1368,3658.7,3658.4,2.73337455]
[1753454323896,0.1368,3658.7,3658.3,2.73349251]
[1753454324105,4.71,3659.0,3656.5,2.73485573]
[1753454324276,0.1368,3658.3,3657.7,0.1368]
[1753454324443,2.73365955,3658.1,3657.7,0.1368]
[1753454324642,1.03471123,3658.1,3657.7,0.1368]
[1753454324891,2.76777424,3658.2,3657.7,0.1368]
[1753454325182,1.33666981,3658.2,3657.7,0.1368]
[1753454325385,1.33666981,3658.2,3657.3,0.1368]
[1753454325386,2.73387496,3657.9,3657.3,0.1368]
[1753454325549,0.17097354,3657.8,3657.3,2.87103771]
[1753454325950,4.709,3658.3,3657.4,2.73413213]
[1753454326145,0.1368,3657.8,3657.3,2.7342329]
[1753454326377,0.03417448,3657.7,3657.5,2.7340386]
[1753454326798,0.1368,3657.8,3657.2,0.1368]
[1753454326943,0.03417448,3657.7,3657.2,0.1368]
[1753454327148,0.1368,3657.8,3657.2,1.0253]
[1753454327348,0.03417448,3657.7,3657.2,0.1368]
[1753454327544,0.90497448,3657.7,3657.2,0.1368]
[1753454327788,0.1368,3657.3,3656.7,0.1368]
[1753454327997,0.03417915,3657.2,3656.1,1.3823]
[1753454328299,0.1368,3657.0,3656.5,0.1368]
[1753454328448,0.03418195,3656.9,3656.5,0.1368]
[1753454328796,0.03418195,3656.9,3656.8,2.73463137]
[1753454328999,4.709,3657.7,3656.8,0.1368]
[1753454329242,0.1368,3657.5,3656.8,0.1368]
[1753454329408,0.03417728,3657.4,3657.0,2.73442604]
[1753454329606,4.709,3657.6,3656.6,0.4339]
[1753454329811,4.8458,3657.6,3657.1,0.1368]
[1753454330004,0.03417634,3657.5,3657.1,0.1368]
[1753454330208,1.3025,3657.4,3655.6,2.7365209]
[1753454330439,0.1368,3656.7,3655.9,0.1368]
[1753454330588,4.709,3656.6,3655.7,1.3823]
[1753454330904,0.1368,3656.4,3656.2,2.73507139]
[1753454331094,0.1368,3656.4,3656.3,2.73500533]
[1753454331620,4.709,3656.6,3656.4,2.73485713]
[1753454331826,4.8458,3656.6,3656.4,2.73485713]
[1753454332119,4.8458,3656.6,3656.2,2.73505407]
[1753454332321,4.8458,3656.6,3656.4,2.73487365]
[1753454332489,4.8458,3656.6,3656.1,0.1368]
[1753454332490,4.709,3656.6,3656.1,0.1368]
[1753454332694,4.709,3657.5,3656.2,0.8885]
[1753454332890,0.1368,3657.1,3656.5,0.1368]
[1753454333095,5.10283049,3657.5,3656.6,1.3543]
[1753454333096,4.709,3657.5,3656.6,1.3543]
[1753454333290,1.3541,3658.0,3656.6,1.3543]
[1753454333291,4.8458,3657.6,3656.7,0.8885]
[1753454333522,4.8458,3657.6,3657.2,2.73433227]
[1753454333832,4.87983351,3657.6,3657.2,2.73433227]
[1753454334031,0.1368,3657.6,3657.1,0.1368]
[1753454334196,1.3123,3658.7,3657.1,0.1368]
[1753454334197,0.1368,3657.8,3657.1,1.0253]
[1753454334393,0.03417448,3657.7,3657.3,2.73424727]